Cogmind - Beta 15 @@@ ROGUE MODE // 2025.07.18 @ 12:54:56 Player: Morgan Result: Smashed by cave-in Performance ------------- Evolutions (0) 0 Regions Visited (1) 200 Robots Destroyed (2) 10 Value Destroyed (13) 13 Prototype IDs (0) 0 Alien Tech Used (0) 0 Bonus (0) 0 TOTAL SCORE: 223 Bonus ------- None Cogmind --------- Core Integrity 0/250 Matter 300/300 Energy 83/100 System Corruption 12% Temperature Warm (183) Movement Walking (120) Location -10/Materials Parts ------- > --- POWER (1) -------- (None) > --- PROPULSION (2) --- Aluminum Leg Aluminum Leg > --- UTILITY (2) ------ Small Storage Unit > --- WEAPON (2) ------- EM Pulse Gun > --- INVENTORY (8) ---- Ion Engine Assault Rifle Peak State ------------ > --- POWER ------------ Ion Engine > --- PROPULSION ------- Aluminum Leg Aluminum Leg > --- UTILITY ---------- Small Storage Unit Improved Terrain Scanner > --- WEAPON ----------- EM Pulse Gun Assault Rifle > --- INVENTORY -------- Ion Engine Mining Laser [Rating: 9] Favorites ----------- Power Ion Engine Engine Ion Engine Propulsion Aluminum Leg Leg Aluminum Leg Utility Small Storage Unit Device Improved Terrain Scanner Storage Small Storage Unit Weapon EM Pulse Gun Energy Gun EM Pulse Gun Ballistic Gun Assault Rifle Special Weapon Mining Laser Build | -11 -10 ------- Run | Yrd Mat Slots Evolved . | . . Power . | . . Propulsion . | . . Utility . | . . Weapon . | . . Parts Attached 8 | 7 1 Power 1 | 1 . Engine 1 | 1 . Core . | . . Reactor . | . . Propulsion 2 | 2 . Treads . | . . Leg 2 | 2 . Wheel . | . . Hover . | . . Flight . | . . Utility 2 | 2 . Device 1 | 1 . Storage 1 | 1 . Processor . | . . Hackware . | . . Protection . | . . Artifact . | . . Weapon 3 | 2 1 Energy Gun 1 | 1 . Energy Cannon . | . . Ballistic Gun 1 | 1 . Ballistic Cannon . | . . Launcher . | . . Special Weapon 1 | . 1 Impact Weapon . | . . Slashing Weapon . | . . Piercing Weapon . | . . Special Melee Weapon . | . . Unidentified Prototypes . | . . Parts Lost 3 | . 3 Power 1 | . 1 Propulsion . | . . Utility 1 | . 1 Weapon 1 | . 1 Highest Loss Streak 3 | . 3 To Critical Strikes . | . . Average Backups 1 | 1 2 Power 1 | 1 1 Propulsion . | . . Utility . | . . Weapon . | . 1 Tool/Special . | . . Unused Backups 1 | . 1 Power 1 | . 1 Propulsion . | . . Utility . | . . Weapon . | . . Tool/Special . | . . Average Slot Usage (%) 100 | . 100 Engine 14 | . 14 Leg 28 | . 28 Device 14 | . 14 Storage 14 | . 14 Energy Gun 14 | . 14 Ballistic Gun 4 | . 4 Special Weapon 10 | . 10 Peak Build Rating 9 | 9 9 Average Rating 6 | 5 8 On Entrance 4 | . 9 Naked Turns . | . . Heaviest Build 15 | 15 15 Greatest Support 20 | 20 20 Greatest Overweight (x) . | . . Average Overweight (x) . | . . Largest Inventory Capacity 8 | 8 8 Average Capacity 7 | 6 8 Most Carried 5 | 5 2 Average Carried 1 | 1 2 Final Capacity 8 | 8 8 Final Carried 2 | 2 2 Class Distribution -------------------- 100% | Mutant Dominant Class ---------------- Mutant | -10/Materials Resources | -11 -10 ----------- Run | Yrd Mat Matter Collected 273 | 273 . Remotely . | . . Salvage Created 124 | 124 . Parts 6 | 6 . Haulers Intercepted . | . . Recyclers Shooed 1 | 1 . Parts Field Recycled . | . . Retrieved Matter . | . . Parts Self-Destructed . | . . Prevented . | . . Kills | -11 -10 ------- Run | Yrd Mat Combat Hostiles Destroyed . | . . Classes Destroyed 2 | 2 . Tunneler 1 | 1 . Recycler 1 | 1 . Best Kill Streak 1 | 1 . Combat Bots Only . | . . Max Kills in Single Turn 1 | 1 . Gunslinging . | . . Exploded . | . . Melee . | . . Uniques/NPCs Destroyed . | . . Combat | -11 -10 -------- Run | Yrd Mat Hostile Shots Fired . | . . Missed . | . . Hits . | . . Damage Taken 567 | . 567 Core 293 | . 293 Absorbed by Shields . | . . Core Remaining (%) 100 | 100 . Volleys Fired 16 | 6 10 Largest 2 | 2 2 Hottest 140 | 60 140 Shots Fired 30 | 12 18 Gun 22 | 12 10 Cannon . | . . Launcher . | . . Special 8 | . 8 Kinetic 6 | 6 . Thermal 8 | . 8 Explosive . | . . Electromagnetic 16 | 6 10 Robot Hit Streak 3 | 3 . Robot Miss Streak 1 | 1 . Penetration Max . | . . Secondary Targets . | . . Shots Hit Robots 7 | 7 . Core Hits 3 | 3 . Critical Kills . | . . Critical Parts Destroyed . | . . Critical Strikes . | . . Melee Attacks . | . . Impact . | . . Slashing . | . . Piercing . | . . Sneak Attacks . | . . Combat Hostiles . | . . Follow-up Attacks . | . . Damage Inflicted 86 | 86 . Guns 83 | 83 . Cannons . | . . Explosions . | . . Melee . | . . Ramming 3 | 3 . Kinetic 47 | 47 . Thermal . | . . Explosive . | . . Electromagnetic 36 | 36 . Impact . | . . Slashing . | . . Piercing . | . . Highest Corruption 12 | . 12 Average Corruption 12 | . 12 Corruption Purged . | . . Corruption Blocked . | . . Overload Shots . | . . Overflow Damage . | . . Projectiles . | . . Explosions . | . . Melee . | . . Knockbacks . | . . Impact . | . . Kinetic . | . . Secondary . | . . Self-Inflicted Damage . | . . Shots . | . . Rammed . | . . Targets Rammed 5 | 5 . Kicked 5 | 5 . Crushed . | . . Highest Temperature 198 | . 198 Average Temperature 91 | . 91 Received Heat Transfer . | . . Siege Activations . | . . Martial Activations . | . . Shielding Activations . | . . Robots Disrupted . | . . Combat Hostiles . | . . Robots Corrupted . | . . Combat Hostiles . | . . Parts Fried . | . . Impact Corruptions . | . . Robots Melted . | . . Combat Hostiles . | . . Parts Melted . | . . Heat Transferred . | . . Parts Sabotaged . | . . Parts Stolen . | . . Parts Stripped . | . . Power Chain Reactions . | . . Alert | -11 -10 ------- Run | Yrd Mat Maximum Alert Level . | . . Low Security (%) 100 | 100 100 Level 1 . | . . Level 2 . | . . Level 3 . | . . Level 4 . | . . Level 5 . | . . High Security . | . . Max Security . | . . Peak Influence 5 | 5 1 Initial . | . . Average . | . . Influence Increases 11 | 10 1 Destroy 0b10 Robot/NC 10 | 10 . Destroy Structure 1 | . 1 Influence Decreases 11 | 10 1 Time Decay 11 | 10 1 Squads Dispatched . | . . Investigation . | . . Extermination . | . . Reinforcement . | . . Assault . | . . Garrison . | . . Intercept . | . . Searches Triggered . | . . Construction Impeded . | . . Haulers Reinforced . | . . Active Scanning Responses . | . . Cargo Convoy Interrupts . | . . Stealth | -11 -10 --------- Run | Yrd Mat Distress Signals . | . . Communications Jammed . | . . Distress Signals . | . . Times Spotted . | . . Peak Tracking Total . | . . Tactical Retreats . | . . Traps | -11 -10 ------- Run | Yrd Mat Traps Triggered . | . . Indirectly . | . . Trap Hack Attempts . | . . Triggered . | . . Disarmed . | . . Reprogrammed . | . . Reused . | . . Traps Extracted . | . . Installed . | . . Triggered . | . . Machines | -11 -10 ---------- Run | Yrd Mat Machines Disabled . | . . Max in Single Turn . | . . Machines Repaired . | . . Machines Dismantled . | . . Machines Sabotaged . | . . Overloaded Fab Kills . | . . Hacking | -11 -10 --------- Run | Yrd Mat Machines Accessed 1 | . 1 Terminals 1 | . 1 Fabricators . | . . Repair Stations . | . . Recycling Units . | . . Scanalyzers . | . . Garrison Access . | . . Total Hacks 7 | . 7 Successful 5 | . 5 Failed 2 | . 2 Catastrophic . | . . Database Lockouts . | . . Manual . | . . Terminals 7 | . 7 Fabricators . | . . Repair Stations . | . . Recycling Units . | . . Scanalyzers . | . . Garrison Access . | . . Terminal Hacks 5 | . 5 Record 3 | . 3 Branch Access Points 1 | . 1 Emergency Access Points 1 | . 1 Fabricator Hacks . | . . Repair Station Hacks . | . . Recycling Unit Hacks . | . . Scanalyzer . | . . Garrison Access Hacks . | . . Unauthorized Hacks . | . . Terminals . | . . Fabricators . | . . Repair Stations . | . . Recycling Units . | . . Scanalyzers . | . . Garrison Access . | . . Data Cores Recovered . | . . Used . | . . Hacking Detections 1 | . 1 Full Trace Events 1 | . 1 Feedback Events . | . . Feedback Blocked . | . . Robot Schematics Acquired . | . . Robots Built . | . . Authchips . | . . Time . | . . Total Robot Build Rating . | . . Part Schematics Acquired . | . . Parts Built . | . . Authchips . | . . Time . | . . Total Part Build Rating . | . . Parts Repaired . | . . Time . | . . Parts Recycled . | . . Recycled Matter . | . . Retrieved Matter . | . . Retrieved Components . | . . Parts Scanalyzed . | . . Part Schematics Acquired . | . . Parts Damaged . | . . Bothacking | -11 -10 ------------ Run | Yrd Mat Used RIF Installer . | . . Robots Hacked . | . . Non-combat . | . . Combat . | . . Robot Hacks Applied . | . . Relay Couplers Released . | . . Fabnet Peak Effective % . | . . Robots Rewired . | . . Allies Hacked . | . . Hacks Repelled . | . . Allies | -11 -10 -------- Run | Yrd Mat Total Allies . | . . Largest Group . | . . Highest-Rated Group . | . . Highest-Rated Ally . | . . Total Orders . | . . Ally Attacks . | . . Total Damage . | . . Kills . | . . Allies Corrupted . | . . Allies Melted . | . . Intel | -11 -10 ------- Run | Yrd Mat Active Infowar (turns) 82 | 22 60 Terrain 82 | 22 60 Robot Analysis Total . | . . Derelict Logs Recovered . | . . Drone Launches . | . . Drone Recoveries . | . . Exploration | -11 -10 ------------- Run | Yrd Mat Turns Passed 153 | 89 64 Spaces Moved 71 | 54 17 Core 21 | 21 . Treads . | . . Legs 50 | 33 17 Wheels . | . . Hover . | . . Flight . | . . Fastest Speed 50 | 50 120 Average Speed 99 | 92 120 Slowest Speed 120 | 120 120 Overloaded Moves . | . . Propulsion Burnouts . | . . Robots Hopped . | . . Potential Cave-ins 3 | . 3 Cave-ins Triggered 2 | . 2 Exploration Rate (%) 5 | 4 6 Regions Visited 1 Branch Regions . Pre-discovered Areas . | . . Known Exits Taken . | . . Unknown Exits Taken 1 | 1 . Scrap Searched . | . . Spaces Dug 8 | . 8 Terrain Destroyed 8 | . 8 Melee . | . . Projectile 8 | . 8 AOE . | . . Terrain Rammed . | . . Walls Destroyed . | . . Machines Disabled . | . . Actions | -11 -10 --------- Run | Yrd Mat Total 108 | 80 28 Wait . | . . Move 70 | 53 17 Hop . | . . Pick Up 9 | 9 . Fast Attach . | . . Attach 7 | 7 . Detach . | . . Swap 1 | . 1 Drop . | . . Fire 16 | 6 10 Melee . | . . Ram . | . . Kick 5 | 5 . Crush . | . . Escape Stasis . | . . Rewire . | . . Trap . | . . Miscellaneous . | . . Route ------- -11/Scrapyard -10/Materials (discovered 1 exit: Min) History --------- Turn | Location | Event 6 | -11/Scrapyard | Discovered new exit (range 16) 90 | -11/Scrapyard | Entered Materials 99 | -10/Materials | Identified exit to Mines 150 | -10/Materials | Crushed by falling debris 150 | -10/Materials | Core integrity fell below 50% 150 | -10/Materials | System corruption reached 10% 155 | -10/Materials | Crushed by falling debris 155 | -10/Materials | Smashed by cave-in Last Messages --------------- >>Access(Branch) Found 1 branch access point: (37,38) Mines Map updated. >>Access(Emergency) Found 2 emergency access doors: (46,59) (49,56) Map updated. K-01 Serf collects debris. The unstable cave ceiling collapses. Crushed by falling debris. Mining Laser destroyed. System corrupted by crushing effect (+3). Ion Engine destroyed. System corrupted by crushing effect (+4). Imp. Terrain Scanner destroyed. System corrupted by crushing effect (+5). The unstable cave ceiling collapses. Crushed by falling debris. Map ----- +----------------------------------------------------+ | ?????????????????????????????????????????????? | | ?????????????????????????????????????????????? | | ?????????????????????????????????????????????? | | ?????????????????????????????????????????????? | | ????????>????????????????????????????????????? | | ?????????????????????????????????????????????? | | ?????????????????????????????????????????????? | | ?????????????????????????????????????????????? | | ?????????????????????????????????????????????? | | ?????????????????????????????????????????????? | | ?????????????????????????????????????????????? | | ???????????????????????????#?????????????????? | | ???????????????????????????? ????????????????? | | ??????????????????? ???????# ###?????????????? | | ?????????????????????????? #?????????????? | | ????????????????#????????? ?????????????? | | ?????????????????????????+ ??????????????? | | ?????????????????????????? ! ??????????????? | | ???????????????????"?????? ??????????????? | | ?????????????#????????????# #??#???????????? | | ??????????????????????????# #??????????????? | | ??????????????????????????# #??????????????? | | ????????????????????+?????# #??????????????? | | ??????????????????#? ###??# #????? ????????? | | ?????????????????#????# ### #????? ? ??????? | | ??????????#??????+ ???# #@# #??????????????? | | ??????????#???????????##### #??????????????? | | ????????????? ?????????# #" #??????????????? | | ?????????????? ? ??#???#### #???#??????????? | | ??????????#?????######### ########???????? | | ????????????? * #???????? | | ??????????#?? T #???#???? | | ????????????? #???????? | | ?????????????########+### [ ###+####???????? | | ???????????????? ?? ? ?#######??????????????? | | ??????????????????" ????????#????????????????? | | ?????????????????""???????#??????????????????? | | ?????????????????"???????????????????????????? | | ????????????????"?????"????#?????????????????? | | ???????????????????????????#?????????????????? | | ?????????????????????????????????????????????? | | | | | | | | | | | | | | | | | | | +----------------------------------------------------+ Best States ------------- Heat Dissipation 25 Energy Generation 10 Energy Capacity 250 Matter Stores 300 Matter Capacity 300 Sight Range 16 Terrain Scan Range 16 Terrain Scan Density 10 Evasion (%) 55 Item Schematics ----------------- None Robot Schematics ------------------ None Fabricated ------------ Nothing Repaired ---------- Nothing Alien Tech Used ----------------- None Achievements -------------- None Challenges ------------ None Game ------ Seed ThiefBombBoregun Manual? 0 Play Time 00:02:52 Cumulative 5.5 hours Start 2025.07.18 @ 12:51:52 End 2025.07.18 @ 12:54:56 Sessions 1 Manual Loads 0 Difficulty Rogue Special Mode None Game No. 23 Rogue 23 Adventurer 0 Explorer 0 Win Type - Total 0 Types 0/0/0/0/0/0/0/0/0/0 Lore% 6 Gallery% 11 Achievement% 11 Wizard Run 0 Options --------- Layout 1 ASCII 0 Keyboard 1 Movement Arrows Keybinds 0 Fullscreen 1 Font 24/Smallcaps Map View 25x17 Zoom Use 94% Tactical HUD 0 Map Filters NONE Filters NONE Steam 1 RUN: 31fefeb1-a126-4ca0-8a2d-04f3b4b1a9ff